bitfinex/quotes_ETHUSD_20251214
["timestamp","ask_amount","ask_price","bid_price","bid_amount"]
[1765673220630,0.9823,3124.6,3124.2,4.45231065]
[1765673220631,0.508,3124.6,3124.2,4.45231065]
[1765673221055,0.508,3124.6,3124.2,7.65313005]
[1765673221353,3.20044271,3124.6,3124.2,4.38131065]
[1765673221528,3.67451139,3124.8,3124.2,4.38131065]
[1765673221529,3.20037886,3124.7,3124.2,4.38131065]
[1765673221734,3.20033187,3124.7,3124.2,4.72669498]
[1765673222139,3.20021423,3124.8,3124.2,0.071]
[1765673222340,0.9823,3124.8,3124.2,4.38131065]
[1765673222557,0.508,3124.9,3124.2,18.05863405]
[1765673222763,0.508,3124.9,3124.2,4.72669498]
[1765673222955,3.20022839,3124.8,3124.2,7.92751438]
[1765673223151,3.20022839,3124.8,3124.2,4.79769498]
[1765673223347,6.87475678,3124.8,3124.2,4.72669498]
[1765673223539,0.4743,3124.6,3124.2,4.38131065]
[1765673224131,0.508,3124.5,3124.2,4.38131065]
[1765673224737,0.508,3124.5,3123.6,1.08847529]
[1765673224738,0.4861,3124.3,3123.6,0.58047529]
[1765673225065,0.4861,3124.3,3123.9,4.31031065]
[1765673225066,3.20092186,3124.1,3123.9,4.31031065]
[1765673225359,0.9931,3124.0,3123.9,4.31031065]
[1765673225666,1.4674,3124.0,3123.9,4.31031065]
[1765673225869,0.9931,3124.0,3123.9,4.31031065]
[1765673226038,0.508,3124.0,3123.9,4.31031065]
[1765673226739,0.508,3124.0,3123.9,4.38131065]
[1765673227565,0.508,3124.0,3123.9,4.31031065]
[1765673227866,3.70902432,3124.0,3123.9,4.31031065]
[1765673228061,4.19412432,3124.0,3123.9,4.31031065]
[1765673228268,0.9931,3124.0,3123.9,4.31031065]
[1765673229862,0.9931,3124.0,3123.7,4.31031065]
[1765673229863,4.66844189,3124.0,3123.7,4.31031065]
[1765673230081,0.1967,3123.9,3123.7,4.31031065]
[1765673230238,0.4851,3123.8,3123.7,4.31031065]
[1765673230448,0.4851,3123.8,3123.2,4.31031065]
[1765673230667,0.4851,3123.5,3123.2,4.31031065]
[1765673230967,0.508,3123.4,3123.2,4.31031065]
[1765673231168,0.508,3123.3,3123.2,4.31031065]
[1765673231553,0.508,3123.3,3123.2,4.38131065]
[1765673231956,0.508,3123.3,3123.2,4.37744964]
[1765673233266,0.508,3123.3,3123.2,0.071]
[1765673234465,0.507,3123.3,3123.2,0.071]
[1765673235666,1.4664,3123.3,3122.9,0.002]
[1765673236477,4.19385862,3123.3,3122.9,0.002]
[1765673237181,0.9921,3123.3,3122.9,0.002]
[1765673237580,4.19387008,3123.3,3122.9,0.002]
[1765673238188,0.9921,3123.3,3122.9,0.002]
[1765673238687,0.507,3123.3,3123.2,0.071]
[1765673240186,0.507,3123.3,3123.1,0.002]
[1765673240387,0.9921,3123.3,3123.1,0.002]
[1765673242357,1.4664,3123.3,3123.1,0.002]
[1765673242560,0.9921,3123.3,3123.1,0.002]
[1765673242960,0.507,3123.3,3123.2,0.071]
[1765673243186,0.507,3123.3,3123.1,0.002]
[1765673243374,0.4851,3123.2,3123.1,0.002]
[1765673243764,0.9749,3123.2,3123.1,0.002]
[1765673244689,4.17674426,3123.2,3123.1,0.002]
[1765673245889,4.96528411,3123.2,3123.1,0.002]
[1765673247096,11.45528411,3123.2,3123.1,0.002]
[1765673247261,12.14406871,3123.2,3123.1,0.002]
[1765673247978,12.44297964,3123.2,3123.1,0.002]
[1765673248172,12.94997964,3123.2,3123.1,0.002]
[1765673248378,14.39051682,3123.2,3123.1,0.002]
[1765673248792,13.93595893,3123.2,3123.1,0.002]
[1765673250006,17.31195893,3123.2,3123.1,0.002]
[1765673250207,3.8726,3123.0,3121.8,0.002]
[1765673250411,0.6052,3121.9,3121.8,0.002]
[1765673250610,1.1122,3121.9,3121.8,0.002]
[1765673250818,4.80497755,3121.9,3121.8,0.002]
[1765673252117,4.80497755,3121.9,3121.6,0.002]
[1765673252118,13.58358419,3121.9,3121.6,0.002]
[1765673252417,0.4966,3121.7,3121.0,0.002]
[1765673252713,0.4966,3121.1,3121.0,0.002]
[1765673252879,4.20759859,3121.1,3121.0,0.002]
[1765673254295,1.0036,3121.1,3121.0,0.002]
[1765673254502,4.20759859,3121.1,3121.0,0.002]
[1765673256419,3.20399859,3121.1,3121.0,0.077]
[1765673256603,3.71099859,3121.1,3121.0,0.077]
[1765673256791,3.71099859,3121.1,3121.0,0.002]
[1765673257490,4.20759859,3121.1,3121.0,0.002]
[1765673261085,3.70059859,3121.1,3121.0,0.002]
[1765673261408,4.20759859,3121.1,3121.0,0.002]
[1765673261612,4.99769851,3121.1,3121.0,0.002]
[1765673262424,5.48729851,3121.1,3121.0,0.002]
[1765673266127,4.50109851,3121.1,3121.0,0.002]
[1765673267690,4.50109851,3121.1,3121.0,0.077]
[1765673268226,4.50109851,3121.1,3121.0,0.002]
[1765673269195,6.49,3121.2,3121.0,0.077]
[1765673269402,9.69389593,3121.2,3121.1,0.075]
[1765673269604,10.20089593,3121.2,3121.1,0.075]
[1765673271121,10.20089593,3121.2,3121.0,0.002]
[1765673273333,3.8907354,3121.1,3121.0,0.002]
[1765673274040,3.8907354,3121.1,3121.0,0.077]
[1765673275638,4.3977354,3121.1,3121.0,0.077]
[1765673275832,4.39899736,3121.1,3121.0,0.077]
[1765673277237,5.25899583,3121.1,3121.0,0.077]
[1765673277542,4.69826331,3121.1,3121.0,0.077]
[1765673278423,5.84456488,3121.1,3121.0,0.077]
[1765673279307,4.69826331,3121.1,3121.0,0.077]
[1765673279641,4.69826331,3121.1,3121.0,0.002]
[1765673279642,5.19306331,3121.1,3121.0,0.002]
[1765673279849,7.37641606,3121.1,3121.0,0.002]
[1765673280343,8.62066841,3121.1,3121.0,0.002]
[1765673280517,8.12586841,3121.1,3121.0,0.002]
[1765673280718,8.12586841,3121.1,3121.0,0.077]
[1765673281112,8.12586841,3121.1,3121.0,0.002]
[1765673281328,6.40641606,3121.1,3121.0,0.002]
[1765673281526,6.90121606,3121.1,3121.0,0.002]
[1765673283044,6.39421606,3121.1,3121.0,0.002]
[1765673283244,6.90121606,3121.1,3121.0,0.002]
[1765673284414,8.63195686,3121.1,3121.0,0.002]
[1765673285250,7.63015686,3121.1,3121.0,0.077]
[1765673285446,8.13715686,3121.1,3121.0,0.077]
[1765673287248,9.10715686,3121.1,3121.0,0.002]
[1765673288348,7.37641606,3121.1,3121.0,0.002]
[1765673288723,7.37762624,3121.1,3121.0,0.002]
[1765673292445,8.53145398,3121.1,3121.0,0.002]
[1765673293064,8.05625398,3121.1,3121.0,0.002]
[1765673295254,6.90242624,3121.1,3121.0,0.002]
[1765673295456,6.40762624,3121.1,3121.0,0.077]
[1765673295640,5.90062624,3121.1,3121.0,0.077]
[1765673295839,6.40762624,3121.1,3121.0,0.077]
[1765673296827,6.40762624,3121.1,3121.0,0.002]
[1765673297366,7.37762624,3121.1,3121.0,0.002]
[1765673299458,8.24300574,3121.1,3121.0,0.002]
[1765673301372,6.76600574,3121.1,3121.0,0.002]
[1765673301571,7.27300574,3121.1,3121.0,0.077]
[1765673305581,7.27300574,3121.1,3121.0,0.002]
[1765673305773,7.72410574,3121.1,3121.0,0.002]
[1765673305964,8.18120574,3121.1,3121.0,0.002]
[1765673307579,4.97720715,3121.1,3121.0,0.002]
[1765673307777,8.18120574,3121.1,3121.0,0.002]
[1765673308075,6.76600574,3121.1,3121.0,0.077]
[1765673308373,7.72410574,3121.1,3121.0,0.002]
[1765673308580,6.01595299,3121.1,3121.0,0.002]
[1765673308952,6.47305299,3121.1,3121.0,0.002]
[1765673310884,12.09767349,3121.1,3121.0,0.002]
[1765673311068,13.25150123,3121.1,3121.0,0.002]
[1765673314402,12.09767349,3121.1,3121.0,0.002]
[1765673314558,11.13357349,3121.1,3121.0,0.002]
[1765673314763,12.05351763,3121.1,3121.0,0.077]
[1765673315969,11.63957349,3121.1,3121.0,0.002]
[1765673316175,13.11835549,3121.1,3121.0,0.002]
[1765673320575,12.09667349,3121.1,3121.0,0.002]
[1765673322327,12.09767349,3121.1,3121.0,0.002]
[1765673326696,11.59167349,3121.1,3121.0,0.002]
[1765673326999,11.13442177,3121.1,3121.0,0.002]
[1765673327174,11.64042177,3121.1,3121.0,0.002]
[1765673327598,12.09752177,3121.1,3121.0,0.002]
[1765673328884,11.64042177,3121.1,3121.0,0.002]
[1765673329209,12.09752177,3121.1,3121.0,0.002]
[1765673335492,18.99532814,3121.1,3121.0,0.002]
[1765673335793,13.37086788,3121.1,3121.0,0.077]
[1765673335991,13.87686788,3121.1,3121.0,0.077]
[1765673336925,14.81276788,3121.1,3121.0,0.002]
[1765673338923,14.81280591,3121.1,3121.0,0.002]
[1765673343639,14.51244347,3121.1,3121.0,0.002]
[1765673343942,14.81276099,3121.1,3121.0,0.002]
[1765673347920,13.82536099,3121.1,3121.0,0.002]
[1765673348233,14.33136099,3121.1,3121.0,0.002]
[1765673348629,14.33517702,3121.1,3121.0,0.002]
[1765673349134,14.81657702,3121.1,3121.0,0.002]
[1765673356932,15.03371251,3121.1,3121.0,0.002]
[1765673357132,13.05497494,3121.1,3121.0,0.077]
[1765673360446,11.90193945,3121.1,3121.0,0.077]
[1765673361946,12.35643945,3121.1,3121.0,0.002]
[1765673362245,12.83783945,3121.1,3121.0,0.002]
[1765673363830,11.90193945,3121.1,3121.0,0.002]
[1765673364325,14.43203792,3121.1,3121.0,0.002]
[1765673364519,14.92763792,3121.1,3121.0,0.002]
[1765673365142,14.6273204,3121.1,3121.0,0.002]
[1765673365317,14.92782513,3121.1,3121.0,0.002]
[1765673367245,16.65856593,3121.1,3121.0,0.002]
[1765673370650,11.96962376,3121.1,3121.0,0.077]
[1765673370834,11.19331812,3121.1,3121.0,0.152]
[1765673371540,11.19331812,3121.1,3121.0,0.077]
[1765673373847,12.05825674,3121.1,3121.0,0.077]
[1765673374022,12.05825605,3121.1,3121.0,0.077]
[1765673375044,12.05825605,3121.1,3121.0,0.152]
[1765673377456,8.34825746,3121.1,3121.0,0.152]
[1765673377758,11.19331812,3121.1,3121.0,0.229]
[1765673378323,11.19331812,3121.1,3121.0,0.304]
[1765673378526,11.19331812,3121.1,3121.0,0.077]
[1765673378942,11.19331812,3121.1,3121.0,0.152]
[1765673379229,7.98931953,3121.1,3121.0,0.152]
[1765673379451,7.98931953,3121.1,3121.0,0.077]
[1765673379654,7.98931953,3121.1,3121.0,0.152]
[1765673383459,11.19331812,3121.1,3121.0,0.152]
[1765673383660,11.19331812,3121.1,3121.0,0.077]
[1765673396359,7.98931953,3121.1,3121.0,0.077]
[1765673396675,7.98931953,3121.1,3121.0,0.152]
[1765673399476,7.48331953,3121.1,3121.0,0.152]
[1765673399675,7.98931953,3121.1,3121.0,0.152]
[1765673401178,7.1828148,3121.1,3121.0,34.46622193]
[1765673401346,7.1828148,3121.1,3121.0,38.04332868]
[1765673401347,0.001,3121.1,3121.0,38.04332868]
[1765673401546,0.001,3121.1,3121.0,38.19532868]
[1765673406075,0.001,3121.1,3121.0,42.50955061]
[1765673406268,0.001,3121.1,3121.0,48.19532868]
[1765673406471,0.001,3121.1,3121.0,38.19532868]
[1765673409281,0.001,3121.1,3121.0,8.19532868]
[1765673409454,0.001,3121.1,3121.0,38.29161677]
[1765673411471,0.001,3121.6,3121.3,0.405504]
[1765673411665,0.001,3121.6,3121.5,34.48551002]
[1765673412068,0.001,3121.6,3121.5,34.56051002]
[1765673412382,0.001,3121.6,3121.5,37.76409803]
[1765673412554,0.001,3121.6,3121.5,39.7120027]
[1765673412752,0.001,3121.6,3121.5,39.6370027]
[1765673412970,0.001,3121.6,3121.5,39.7120027]
[1765673413981,0.001,3121.6,3121.5,39.70666948]
[1765673414193,0.001,3122.4,3121.8,0.405504]
[1765673414377,0.001,3122.4,3122.3,7.5866559]
[1765673414884,0.001,3122.4,3122.3,8.54833768]
[1765673416080,0.001,3122.4,3122.3,8.54815058]
[1765673417691,0.001,3122.4,3122.3,8.62315058]
[1765673421186,0.001,3122.4,3122.3,8.54815058]
[1765673421761,0.9264,3122.4,3122.3,5.27038339]
[1765673421986,0.9264,3122.4,3122.3,4.30870161]
[1765673422290,0.9264,3122.4,3122.3,7.5114688]
[1765673424906,0.001,3122.4,3122.3,7.5114688]
[1765673425207,0.001,3122.4,3122.3,7.5864688]
[1765673425367,0.001,3122.4,3122.3,7.5114688]
[1765673426394,0.001,3122.4,3122.3,3.20276719]
[1765673426587,0.001,3122.4,3122.3,7.5114688]
[1765673426588,0.9256,3122.4,3122.3,7.5114688]
[1765673427698,0.4728,3122.4,3122.3,7.5114688]
[1765673429200,0.4728,3122.4,3122.3,3.20276719]
[1765673429403,0.4728,3122.4,3122.3,7.5114688]
[1765673431076,0.4728,3122.4,3122.2,3.29912245]
[1765673431276,1.4537,3122.4,3122.2,4.4049897]
[1765673431496,0.9788,3122.4,3122.3,3.20276719]
[1765673432014,1.4537,3122.4,3122.1,0.96181436]
[1765673432221,0.4672,3122.2,3122.1,0.96181436]
[1765673432573,0.9421,3122.2,3121.9,3.29945864]
[1765673433118,0.4672,3122.0,3121.9,3.29945864]
[1765673433431,0.507,3122.4,3121.9,3.29945864]
[1765673433703,0.9819,3122.4,3122.3,0.09628809]
[1765673434075,1.4491,3122.4,3122.3,0.09628809]
[1765673440488,0.507,3122.4,3122.3,0.09628809]
[1765673440795,1.4491,3122.4,3122.3,0.09628809]
[1765673443205,45.002819,3122.4,3122.3,0.09628809]
[1765673444887,44.527919,3122.4,3122.3,0.09628809]
[1765673446003,45.002819,3122.4,3122.3,0.09628809]
[1765673447399,44.060719,3122.4,3122.3,0.17128809]
[1765673448299,44.527919,3122.4,3122.3,0.09628809]
[1765673449795,44.060719,3122.4,3122.3,4.40566971]
[1765673451510,43.554719,3122.4,3122.3,4.48066971]
[1765673451713,44.060719,3122.4,3122.3,4.48066971]
[1765673453696,43.554719,3122.4,3122.3,7.6834369]
[1765673453898,43.554719,3122.4,3122.3,7.7584369]
[1765673457224,43.554719,3122.4,3122.3,3.44905528]
[1765673457527,43.554719,3122.4,3122.3,7.6834369]
[1765673457736,43.554719,3122.4,3122.3,4.48066971]
[1765673460152,44.039019,3122.4,3122.3,4.40566971]
[1765673460930,44.495319,3122.4,3122.3,0.09628809]
[1765673461256,48.69679984,3122.4,3122.2,0.09628809]
[1765673461455,0.99187771,3122.3,3122.2,0.09628809]
[1765673461772,0.99187771,3122.3,3122.0,0.09628809]
[1765673461773,5.13524813,3122.3,3121.7,0.09628809]
[1765673461926,5.13524813,3122.3,3121.9,0.09628809]
[1765673461927,4.65778084,3122.2,3121.9,0.09628809]
[1765673462127,0.4843,3122.0,3121.9,0.09628809]
[1765673462338,1.17596748,3122.0,3121.9,0.09628809]
[1765673462569,1.63226748,3122.0,3121.9,0.09628809]
[1765673463945,1.17596748,3122.0,3121.9,0.09628809]
[1765673464130,1.68196748,3122.0,3121.9,0.09628809]
[1765673464335,2.13826748,3122.0,3121.9,0.09628809]
[1765673468465,1.4466,3122.0,3121.9,0.09628809]
[1765673469832,5.11462607,3122.0,3121.7,0.09628809]
[1765673470024,48.08556006,3122.4,3121.9,4.48066971]
[1765673470229,1.95305863,3122.3,3122.1,0.09628809]
[1765673470440,0.69099534,3122.2,3122.1,0.09628809]
[1765673470756,1.63159534,3122.2,3122.1,0.09628809]
[1765673474332,4.83446511,3122.2,3122.1,0.09628809]
[1765673474659,1.63159534,3122.2,3122.1,0.09628809]
[1765673474843,4.83446511,3122.2,3122.1,0.09628809]
[1765673475357,8.04406824,3122.2,3121.7,0.09628809]
[1765673475661,0.4843,3121.8,3121.7,0.09628809]
[1765673475858,0.9903,3121.8,3121.7,0.09628809]
[1765673476632,1.4466,3121.8,3121.7,0.09628809]
[1765673478242,4.64988015,3121.8,3121.7,0.09628809]
[1765673478447,2.25182542,3121.8,3121.7,0.09628809]
[1765673478644,4.64988015,3121.8,3121.7,0.09628809]
[1765673478889,4.64988015,3121.8,3121.5,0.09828809]
[1765673479053,0.4843,3121.6,3121.5,0.09828809]
[1765673479551,0.9406,3121.6,3121.5,0.09828809]
[1765673479958,0.9406,3121.6,3121.5,0.002]
[1765673480955,4.14408539,3121.6,3121.5,0.002]
[1765673482066,8.04388929,3121.6,3121.5,0.002]
[1765673482585,8.34350658,3121.6,3121.5,0.002]
[1765673483154,14.53388929,3121.6,3121.5,0.002]
[1765673486565,15.03988929,3121.6,3121.5,0.002]
[1765673490285,8.17050077,3121.6,3121.5,0.002]
[1765673490573,6.996,3121.6,3121.5,0.077]
[1765673490763,6.49,3121.6,3121.5,0.077]
[1765673490969,6.996,3121.6,3121.5,0.077]
[1765673491274,6.996,3121.6,3121.5,0.002]
[1765673492882,7.68724026,3121.6,3121.5,0.002]
[1765673493173,6.997,3121.6,3121.5,0.002]
[1765673493368,7.68726015,3121.6,3121.5,0.002]
[1765673495991,11.38114554,3121.6,3121.5,0.002]
[1765673496284,11.84974554,3121.6,3121.5,0.002]
[1765673496659,8.64626015,3121.6,3121.5,0.002]
[1765673496866,11.84974554,3121.6,3121.5,0.002]
[1765673503053,13.86020673,3121.6,3121.5,0.002]
[1765673503258,8.47744178,3121.6,3121.5,0.002]
[1765673503459,7.98704178,3121.6,3121.5,0.002]
[1765673503768,7.18126015,3121.6,3121.5,0.077]
[1765673504081,6.997,3121.6,3121.5,0.152]
[1765673504276,6.997,3121.6,3121.5,1.02481627]
[1765673509259,8.17881257,3121.6,3121.5,0.09828809]
[1765673509592,8.64741257,3121.6,3121.5,0.002]
[1765673510159,7.68841257,3121.6,3121.5,0.002]
[1765673510368,7.68841257,3121.6,3121.5,0.077]
[1765673510869,7.68841257,3121.6,3121.5,0.002]
[1765673512591,7.68841257,3121.6,3121.5,0.077]
[1765673515570,7.68841257,3121.6,3121.5,0.152]
[1765673516986,6.997,3121.6,3121.5,0.152]
[1765673517391,6.997,3121.6,3121.5,0.077]
[1765673517783,7.68859293,3121.6,3121.5,0.077]
[1765673520367,8.17529293,3121.6,3121.5,0.002]
[1765673520690,8.67219293,3121.6,3121.5,0.002]
[1765673521988,7.68859293,3121.6,3121.5,0.002]
[1765673522191,7.68859293,3121.6,3121.5,0.077]
[1765673522588,8.67219293,3121.6,3121.5,0.002]
[1765673523300,8.17529293,3121.6,3121.5,0.002]
[1765673524203,7.68859293,3121.6,3121.5,0.077]
[1765673525475,8.17529293,3121.6,3121.5,0.002]
[1765673526497,8.67219293,3121.6,3121.5,0.002]
[1765673528275,12.8000935,3121.6,3121.5,0.002]
[1765673528499,7.98884772,3121.6,3121.5,0.077]
[1765673532007,8.97244772,3121.6,3121.5,0.002]
[1765673532206,12.17593311,3121.6,3121.5,0.002]
[1765673537804,8.47554772,3121.6,3121.5,0.002]
[1765673538013,7.98884772,3121.6,3121.5,0.002]
[1765673538592,8.47554772,3121.6,3121.5,0.002]
[1765673542916,11.67903311,3121.6,3121.5,0.002]
[1765673543087,12.17593311,3121.6,3121.5,0.002]
[1765673544712,8.97244772,3121.6,3121.5,0.002]
[1765673545211,12.17593311,3121.6,3121.5,0.002]
[1765673545914,11.67903311,3121.6,3121.5,0.002]
[1765673546429,15.38593624,3121.6,3121.5,0.002]
[1765673552099,14.88863624,3121.6,3121.5,0.002]
[1765673552304,11.19845085,3121.6,3121.5,0.002]
[1765673552499,14.40193624,3121.6,3121.5,0.077]
[1765673552823,11.19233311,3121.6,3121.5,0.077]
[1765673553187,11.19233311,3121.6,3121.5,0.002]
[1765673554525,4.70233311,3121.6,3121.5,0.002]
[1765673556620,1.49884772,3121.6,3121.5,0.002]
[1765673558140,2.44324772,3121.6,3121.5,0.002]
[1765673559210,5.64673311,3121.6,3121.5,0.002]
[1765673561316,6.90419366,3121.6,3121.5,0.002]
[1765673570837,7.03249316,3121.6,3121.5,0.002]
[1765673572156,13.52249316,3121.6,3121.5,0.002]
[1765673572358,13.52271592,3121.6,3121.5,0.002]
[1765673581864,13.44280709,3121.6,3121.5,0.077]
[1765673582567,12.57831592,3121.6,3121.5,0.077]
[1765673583261,11.32085537,3121.6,3121.5,0.077]
[1765673583459,7.98907048,3121.6,3121.5,0.152]
[1765673584068,7.98907048,3121.6,3121.5,0.17328809]
[1765673584364,7.98900475,3121.6,3121.5,0.17328809]
[1765673585268,1.49900475,3121.6,3121.5,0.17328809]
[1765673590444,1.49899079,3121.6,3121.5,0.17328809]
[1765673592869,1.49899079,3121.6,3121.5,0.24828809]
[1765673594474,1.49899079,3121.6,3121.5,0.17328809]
[1765673596261,1.49899079,3121.6,3121.5,0.002]
[1765673596262,1.98059079,3121.6,3121.5,0.002]
[1765673596459,2.47249079,3121.6,3121.5,0.002]
[1765673597178,1.98059079,3121.6,3121.5,0.002]
[1765673597683,8.42623426,3121.6,3121.5,0.002]
[1765673598474,8.55453581,3121.6,3121.5,0.002]
[1765673601986,15.04453581,3121.6,3121.5,0.002]
[1765673605188,15.04448491,3121.6,3121.5,0.002]
[1765673606080,15.90897608,3121.6,3121.5,0.002]
[1765673614808,16.48945137,3121.6,3121.5,0.002]
[1765673615013,16.77761509,3121.6,3121.5,0.002]
[1765673615513,15.6249602,3121.6,3121.5,0.002]
[1765673616983,16.77761509,3121.6,3121.5,0.002]
[1765673617209,21.09137544,3121.6,3121.5,0.002]
[1765673617606,19.93872055,3121.6,3121.5,0.002]
[1765673620318,21.09058391,3121.6,3121.5,0.002]
[1765673621698,15.6249602,3121.6,3121.5,0.002]
[1765673623314,16.77660809,3121.6,3121.5,0.002]
[1765673623518,11.90120212,3121.6,3121.5,0.077]
[1765673623883,31.90120212,3121.6,3121.5,0.077]
[1765673624922,29.43310708,3121.6,3121.5,0.152]
[1765673625295,32.63659247,3121.6,3121.5,0.077]
[1765673625822,32.86117059,3121.6,3121.5,0.077]
[1765673630429,32.63659247,3121.6,3121.5,0.077]
[1765673632024,33.12489247,3121.6,3121.5,0.002]
[1765673632220,32.26120057,3121.6,3121.5,0.002]
[1765673637734,34.9172919,3121.6,3121.5,0.002]
[1765673640629,36.06893979,3121.6,3121.5,0.002]
[1765673641232,36.1972611,3121.6,3121.5,0.002]
[1765673644341,35.04561321,3121.6,3121.5,0.002]
[1765673648646,35.45111721,3121.6,3121.5,0.002]
[1765673649315,37.18009955,3121.6,3121.5,0.002]
[1765673649954,35.45111721,3121.6,3121.5,0.002]
[1765673651136,0.58047529,3121.3,3121.0,0.002]
[1765673651336,0.4675,3121.1,3121.0,0.002]
[1765673651662,1.93673989,3121.1,3121.0,0.002]
[1765673651833,3.66981466,3121.1,3121.0,0.002]
[1765673652842,3.79815697,3121.1,3121.0,0.002]
[1765673653032,4.83371659,3121.1,3121.0,0.002]
[1765673653238,6.8851157,3121.1,3121.0,0.002]
[1765673653440,8.03713307,3121.1,3121.0,0.002]
[1765673654050,14.52513307,3121.1,3121.0,0.002]
[1765673656252,14.93063707,3121.1,3121.0,0.002]
[1765673657933,19.24717463,3121.1,3121.0,0.002]
[1765673659456,18.09515726,3121.1,3121.0,0.002]
[1765673661951,19.24717463,3121.1,3121.0,0.002]
[1765673665135,18.09515726,3121.1,3121.0,0.002]
[1765673665743,18.09546139,3121.1,3121.0,0.002]
[1765673670135,19.82436061,3121.1,3121.0,0.002]
[1765673670343,18.09546139,3121.1,3121.0,0.002]
[1765673670741,18.09546139,3121.1,3120.9,0.002]
[1765673670939,4.6924857,3121.0,3120.9,0.002]
[1765673671270,9.41483139,3121.0,3120.9,0.002]
[1765673671476,5.30282098,3120.5,3120.4,0.002]
[1765673671637,7.45386087,3120.5,3120.4,0.002]
[1765673671837,9.2175293,3120.5,3120.4,0.002]
[1765673672172,12.55052044,3120.5,3120.4,0.002]
[1765673672465,13.70150215,3120.5,3120.4,0.002]
[1765673678069,12.55052044,3120.5,3120.4,0.002]
[1765673686689,7.10907875,3120.5,3120.4,0.077]
[1765673686989,7.56807875,3120.5,3120.4,0.002]
[1765673687183,7.06207875,3120.5,3120.4,0.002]
[1765673687412,7.56807875,3120.5,3120.4,0.002]
[1765673687886,6.60307875,3120.5,3120.4,0.077]
[1765673688072,5.81691032,3120.5,3120.4,0.152]
[1765673688448,26.96776047,3120.5,3120.4,0.152]
[1765673689281,25.81691032,3120.5,3120.4,0.152]
[1765673691161,25.31091032,3120.5,3120.4,0.077]
[1765673691481,25.81691032,3120.5,3120.4,0.152]
[1765673691682,28.89169932,3120.5,3120.4,0.152]
[1765673692581,30.04232346,3120.5,3120.4,0.152]
[1765673693868,36.53032346,3120.5,3120.4,0.152]
[1765673694062,36.12481946,3120.5,3120.4,0.152]
[1765673694286,34.97343379,3120.5,3120.4,0.152]
[1765673695589,33.05058868,3120.5,3120.4,0.152]
[1765673695760,31.89864479,3120.5,3120.4,0.152]
[1765673695958,31.89864479,3120.5,3120.4,0.077]
[1765673698184,32.38444479,3120.5,3120.4,0.002]
[1765673698387,34.11091735,3120.5,3120.4,0.002]
[1765673698556,19.998,3120.4,3120.3,0.002]
[1765673698757,20.98917836,3120.4,3120.3,0.002]
[1765673699059,20.98917836,3120.4,3120.3,0.077]
[1765673699392,24.1938957,3120.4,3120.3,0.077]
[1765673699767,37.74488262,3120.4,3120.3,0.002]
[1765673699969,40.28048848,3120.4,3120.3,0.002]
[1765673700168,0.98597929,3120.3,3120.2,0.002]
[1765673700373,0.58047529,3120.0,3119.7,0.002]
[1765673700578,0.86525308,3119.8,3119.7,0.002]
[1765673700786,1.85643144,3119.8,3119.7,0.002]
[1765673701097,1.85653567,3119.8,3119.7,0.152]
[1765673701295,1.11967063,3119.8,3119.7,0.152]
[1765673701804,4.3250043,3119.8,3119.7,0.152]
[1765673703305,5.19016329,3119.8,3119.7,0.152]
[1765673705720,11.67616329,3119.8,3119.7,0.152]
[1765673706900,8.97682962,3119.8,3119.7,0.152]
[1765673708184,8.47082962,3119.8,3119.7,0.152]
[1765673708506,8.97682962,3119.8,3119.7,0.152]
[1765673711206,8.11167063,3119.8,3119.7,0.152]
[1765673712811,28.11167063,3119.8,3119.7,0.152]
[1765673712997,28.11153169,3119.8,3119.7,0.152]
[1765673713198,27.98314365,3119.8,3119.7,0.152]
[1765673713923,27.98314365,3119.8,3119.7,4.47077945]
[1765673714127,27.6828314,3119.8,3119.7,4.47077945]
[1765673714298,27.98312536,3119.8,3119.7,4.47077945]
[1765673715617,27.98312536,3119.8,3119.7,7.67621587]
[1765673715812,27.98312536,3119.8,3119.7,4.47077945]
[1765673716491,27.98312536,3119.8,3119.7,4.9182574]
[1765673716706,27.98312536,3119.8,3119.7,8.12369382]
[1765673717619,20.0,3119.8,3119.7,8.12369382]
[1765673718117,20.0,3119.8,3119.7,9.08284144]
[1765673719320,20.0,3119.8,3119.7,39.08284144]
[1765673720120,20.0,3119.8,3119.7,0.96259515]
[1765673720322,20.0,3119.8,3119.7,4.16803157]
[1765673721717,20.0,3119.8,3119.6,0.09828809]
[1765673721718,20.0,3119.8,3119.6,3.30380596]
[1765673721921,20.0,3119.8,3119.6,3.20751787]
[1765673724230,20.0,3119.8,3119.6,0.002]
[1765673725522,20.0,3119.8,3119.6,0.09828809]
[1765673725831,20.0,3119.8,3119.6,4.41362001]
[1765673726665,20.0,3119.8,3119.7,3.20543642]
[1765673728234,20.0,3119.8,3119.6,0.002]
[1765673730358,20.001,3119.8,3119.6,0.002]
[1765673731033,20.4891,3119.8,3119.6,0.002]
[1765673731335,20.001,3119.8,3119.6,0.002]
[1765673735444,26.487,3119.8,3119.6,0.002]
[1765673737545,20.001,3119.8,3119.6,0.002]
[1765673737843,1.93848923,3119.7,3119.6,0.002]
[1765673738753,4.08716418,3119.7,3119.6,0.002]
[1765673738954,6.25831193,3119.7,3119.6,0.002]
[1765673739119,7.8503603,3119.7,3119.6,0.002]
[1765673739320,12.21188849,3119.7,3119.6,0.002]
[1765673739531,11.05996343,3119.7,3119.6,0.002]
[1765673740221,12.21145229,3119.7,3119.6,0.002]
[1765673744247,11.05996343,3119.7,3119.6,0.002]
[1765673747056,11.06096343,3119.7,3119.6,0.002]
[1765673749657,11.06021787,3119.7,3119.6,0.002]